Cogmind - Beta 14 @@@ ROGUE MODE // 2024.09.20 @ 02:08:45 Player: JustYourOrdinaryPerson Result: Destroyed by G-34 Mercenary with Small Laser Performance ------------- Evolutions (0) 0 Regions Visited (4) 800 Robots Destroyed (4) 20 Value Destroyed (98) 98 Prototype IDs (0) 0 Alien Tech Used (0) 0 Bonus (0) 0 TOTAL SCORE: 918 Bonus ------- None Cogmind --------- Core Integrity 0/250 Matter 318/400 Energy 98/100 System Corruption 0% Temperature Cool (6) Movement Core (50) Location -9/Mines Parts ------- > --- POWER (1) -------- (None) > --- PROPULSION (2) --- (None) > --- UTILITY (2) ------ Medium Matter Pod > --- WEAPON (2) ------- (None) > --- INVENTORY (5) ---- Ion Engine Improved Heat Sink Experimental Sensor Array EM Pulse Gun Peak State ------------ > --- POWER ------------ Light Nuclear Core > --- PROPULSION ------- Wheel Compact Wheel > --- UTILITY ---------- Medium Matter Pod Improved Terrain Scanner > --- WEAPON ----------- Particle Gun Assault Rifle > --- INVENTORY -------- Ion Engine Improved Heat Sink Experimental Sensor Array EM Pulse Gun [Rating: 13] Favorites ----------- Power Light Nuclear Core Engine Ion Engine Power Core Light Nuclear Core Propulsion Compact Wheel Wheel Compact Wheel Utility Improved Terrain Scanner Device Improved Terrain Scanner Storage Medium Matter Pod Weapon Assault Rifle Energy Gun Particle Gun Ballistic Gun Assault Rifle Build | -11 -10 -10 -10 -9 ------- Run | Yrd Mat Min Exi Min Slots Evolved . | . . . . . Power . | . . . . . Propulsion . | . . . . . Utility . | . . . . . Weapon . | . . . . . Parts Attached 9 | 6 1 2 . . Power 2 | 1 . 1 . . Engine 1 | 1 . . . . Core 1 | . . 1 . . Reactor . | . . . . . Propulsion 2 | 2 . . . . Treads . | . . . . . Leg . | . . . . . Wheel 2 | 2 . . . . Hover . | . . . . . Flight . | . . . . . Utility 2 | 1 1 . . . Device 1 | 1 . . . . Storage 1 | . 1 . . . Processor . | . . . . . Hackware . | . . . . . Protection . | . . . . . Artifact . | . . . . . Weapon 3 | 2 . 1 . . Energy Gun 2 | 1 . 1 . . Energy Cannon . | . . . . . Ballistic Gun 1 | 1 . . . . Ballistic Cannon . | . . . . . Launcher . | . . . . . Special Weapon . | . . . . . Impact Weapon . | . . . . . Slashing Weapon . | . . . . . Piercing Weapon . | . . . . . Special Melee Weapon . | . . . . . Unidentified Prototypes . | . . . . . Parts Lost 6 | . . . . 6 Power 1 | . . . . 1 Propulsion 2 | . . . . 2 Utility 1 | . . . . 1 Weapon 2 | . . . . 2 Highest Loss Streak 6 | . . . . 6 To Critical Strikes . | . . . . . Average Slot Usage (%) 96 | . 86 100 100 85 Engine 4 | . 14 2 . . Core 9 | . . 11 14 14 Wheel 28 | . 28 28 28 28 Device 13 | . 14 14 14 . Storage 10 | . 1 14 14 14 Energy Gun 14 | . 14 14 14 14 Ballistic Gun 14 | . 14 14 14 14 Peak Build Rating 13 | 8 9 13 13 13 Average Rating 9 | 5 8 11 13 8 On Entrance 8 | . 8 9 13 13 Naked Turns . | . . . . . Heaviest Build 13 | 10 12 13 13 13 Greatest Support 26 | 26 26 26 26 26 Greatest Overweight (x) 1 | 1 . . . . Average Overweight (x) . | . . . . . Largest Inventory Capacity 5 | 5 5 5 5 5 Average Capacity 5 | 5 5 5 5 5 Most Carried 4 | . . 4 4 4 Average Carried 2 | . . 2 4 4 Final Capacity 5 | 5 5 5 5 5 Final Carried 4 | . . 4 4 4 Class Distribution -------------------- 100% | Mutant Dominant Class ---------------- Mutant | -10/Materials Mutant | -10/Mines Mutant | -10/Exiles Mutant | -9/Mines Resources | -11 -10 -10 -10 -9 ----------- Run | Yrd Mat Min Exi Min Matter Collected 299 | 184 . 95 . 20 Remotely . | . . . . . Salvage Created 118 | 10 . 108 . . Parts 14 | 4 . 10 . . Haulers Intercepted . | . . . . . Recyclers Shooed . | . . . . . Parts Field Recycled . | . . . . . Retrieved Matter . | . . . . . Parts Self-Destructed . | . . . . . Prevented . | . . . . . Kills | -11 -10 -10 -10 -9 ------- Run | Yrd Mat Min Exi Min Combat Hostiles Destroyed 3 | . . 3 . . Guns 3 | . . 3 . . Classes Destroyed 3 | 1 . 2 . . Tunneler 1 | 1 . . . . Swarmer 1 | . . 1 . . Grunt 2 | . . 2 . . Best Kill Streak 2 | 1 . 2 . . Combat Bots Only 2 | . . 2 . . Max Kills in Single Turn 1 | 1 . 1 . . Gunslinging . | . . . . . Exploded . | . . . . . Melee . | . . . . . Uniques/NPCs Destroyed . | . . . . . Combat | -11 -10 -10 -10 -9 -------- Run | Yrd Mat Min Exi Min Hostile Shots Fired 52 | . . 20 . 32 Missed 13 | . . 5 . 8 Damage Taken 605 | . . 168 . 437 Core 257 | . . 75 . 182 Absorbed by Shields . | . . . . . Core Remaining (%) 100 | 100 . . . . Volleys Fired 7 | 1 . 6 . . Largest 2 | 2 . 2 . . Hottest 85 | 60 . 85 . . Shots Fired 14 | 2 . 12 . . Gun 14 | 2 . 12 . . Cannon . | . . . . . Launcher . | . . . . . Special . | . . . . . Kinetic 7 | 1 . 6 . . Thermal 1 | . . 1 . . Explosive . | . . . . . Electromagnetic 6 | 1 . 5 . . Robot Hit Streak 4 | 2 . 4 . . Robot Miss Streak 2 | . . 2 . . Penetration Max . | . . . . . Secondary Targets 1 | . . 1 . . Max Gunslinging Chain 1 | . . 1 . . Shots Hit Robots 9 | 2 . 7 . . Core Hits 8 | 3 . 5 . . Critical Kills 1 | . . 1 . . Critical Parts Destroyed . | . . . . . Critical Strikes 1 | . . 1 . . Destroy 1 | . . 1 . . Melee Attacks . | . . . . . Impact . | . . . . . Slashing . | . . . . . Piercing . | . . . . . Sneak Attacks . | . . . . . Combat Hostiles . | . . . . . Follow-up Attacks . | . . . . . Damage Inflicted 185 | 90 . 95 . . Guns 121 | 26 . 95 . . Cannons . | . . . . . Explosions 64 | 64 . . . . Melee . | . . . . . Ramming . | . . . . . Kinetic 52 | 14 . 38 . . Thermal 82 | 64 . 18 . . Explosive . | . . . . . Electromagnetic 51 | 12 . 39 . . Impact . | . . . . . Slashing . | . . . . . Piercing . | . . . . . Highest Corruption . | . . . . . Average Corruption . | . . . . . Corruption Purged . | . . . . . Corruption Blocked . | . . . . . Overload Shots . | . . . . . Overflow Damage 18 | 18 . . . . Projectiles . | . . . . . Explosions 18 | 18 . . . . Melee . | . . . . . Knockbacks . | . . . . . Impact . | . . . . . Kinetic . | . . . . . Secondary . | . . . . . Self-Inflicted Damage . | . . . . . Shots . | . . . . . Rammed . | . . . . . Targets Rammed . | . . . . . Kicked . | . . . . . Crushed . | . . . . . Highest Temperature 69 | . . 69 . . Average Temperature 41 | . . 41 . . Received Heat Transfer 105 | . . 69 . 36 Siege Activations . | . . . . . Robots Corrupted . | . . . . . Combat Hostiles . | . . . . . Parts Fried . | . . . . . Impact Corruptions . | . . . . . Robots Melted . | . . . . . Combat Hostiles . | . . . . . Parts Melted . | . . . . . Heat Transferred 137 | 100 . 37 . . Parts Sabotaged . | . . . . . Parts Stolen . | . . . . . Parts Stripped . | . . . . . Power Chain Reactions 1 | 1 . . . . Alert | -11 -10 -10 -10 -9 ------- Run | Yrd Mat Min Exi Min Peak Influence 122 | 5 20 122 . . Initial 7 | . 3 7 . . Average 31 | 2 14 84 . . Maximum Alert Level . | . . . . . Low Security (%) 100 | 100 100 100 . 100 Level 1 . | . . . . . Level 2 . | . . . . . Level 3 . | . . . . . Level 4 . | . . . . . Level 5 . | . . . . . High Security . | . . . . . Max Security . | . . . . . Squads Dispatched 2 | . 2 . . . Investigation 1 | . 1 . . . Extermination . | . . . . . Reinforcement 1 | . 1 . . . Assault . | . . . . . Garrison . | . . . . . Intercept . | . . . . . Searches Triggered . | . . . . . Construction Impeded . | . . . . . Haulers Reinforced . | . . . . . Active Scanning Responses . | . . . . . Cargo Convoy Interrupts . | . . . . . Stealth | -11 -10 -10 -10 -9 --------- Run | Yrd Mat Min Exi Min Distress Signals . | . . . . . Communications Jammed . | . . . . . Distress Signals . | . . . . . Times Spotted 14 | . 1 4 . 9 Peak Tracking Total 9 | . 1 3 . 9 Tactical Retreats 1 | . . 1 . . Traps | -11 -10 -10 -10 -9 ------- Run | Yrd Mat Min Exi Min Traps Triggered 1 | . 1 . . . Indirectly . | . . . . . Trap Hack Attempts . | . . . . . Triggered . | . . . . . Disarmed . | . . . . . Reprogrammed . | . . . . . Reused . | . . . . . Traps Extracted . | . . . . . Installed . | . . . . . Triggered . | . . . . . Machines | -11 -10 -10 -10 -9 ---------- Run | Yrd Mat Min Exi Min Machines Disabled . | . . . . . Max in Single Turn . | . . . . . Machines Repaired . | . . . . . Machines Dismantled . | . . . . . Machines Sabotaged . | . . . . . Overloaded Fab Kills . | . . . . . Hacking | -11 -10 -10 -10 -9 --------- Run | Yrd Mat Min Exi Min Machines Accessed 3 | . 2 . 1 . Terminals 2 | . 2 . . . Fabricators . | . . . . . Repair Stations . | . . . . . Recycling Units . | . . . . . Scanalyzers . | . . . . . Garrison Access . | . . . . . Total Hacks 27 | . 4 . 23 . Successful 26 | . 3 . 23 . Failed 1 | . 1 . . . Catastrophic . | . . . . . Database Lockouts . | . . . . . Manual . | . . . . . Terminals 4 | . 4 . . . Fabricators . | . . . . . Repair Stations . | . . . . . Recycling Units . | . . . . . Scanalyzers . | . . . . . Garrison Access . | . . . . . Terminal Hacks 26 | . 3 . 23 . Record 23 | . . . 23 . Maintenance Status 1 | . 1 . . . Investigation Status 1 | . 1 . . . Zone Layout 1 | . 1 . . . Fabricator Hacks . | . . . . . Repair Station Hacks . | . . . . . Recycling Unit Hacks . | . . . . . Scanalyzer . | . . . . . Garrison Access Hacks . | . . . . . Unauthorized Hacks . | . . . . . Terminals . | . . . . . Fabricators . | . . . . . Repair Stations . | . . . . . Recycling Units . | . . . . . Scanalyzers . | . . . . . Garrison Access . | . . . . . Data Cores Recovered . | . . . . . Used . | . . . . . Hacking Detections 1 | . 1 . . . Full Trace Events . | . . . . . Feedback Events . | . . . . . Feedback Blocked . | . . . . . Robot Schematics Acquired . | . . . . . Robots Built . | . . . . . Authchips . | . . . . . Time . | . . . . . Total Robot Build Rating . | . . . . . Part Schematics Acquired . | . . . . . Parts Built . | . . . . . Authchips . | . . . . . Time . | . . . . . Total Part Build Rating . | . . . . . Parts Repaired . | . . . . . Time . | . . . . . Parts Recycled . | . . . . . Recycled Matter . | . . . . . Retrieved Matter . | . . . . . Retrieved Components . | . . . . . Parts Scanalyzed . | . . . . . Part Schematics Acquired . | . . . . . Parts Damaged . | . . . . . Bothacking | -11 -10 -10 -10 -9 ------------ Run | Yrd Mat Min Exi Min Used RIF Installer . | . . . . . Robots Hacked . | . . . . . Non-combat . | . . . . . Combat . | . . . . . Robot Hacks Applied . | . . . . . Relay Couplers Released . | . . . . . Fabnet Peak Effective % . | . . . . . Robots Rewired . | . . . . . Allies Hacked . | . . . . . Hacks Repelled . | . . . . . Allies | -11 -10 -10 -10 -9 -------- Run | Yrd Mat Min Exi Min Total Allies . | . . . . . Largest Group . | . . . . . Highest-Rated Group . | . . . . . Highest-Rated Ally . | . . . . . Total Orders . | . . . . . Ally Attacks . | . . . . . Total Damage . | . . . . . Kills . | . . . . . Allies Corrupted . | . . . . . Allies Melted . | . . . . . Intel | -11 -10 -10 -10 -9 ------- Run | Yrd Mat Min Exi Min Robot Analysis Total . | . . . . . Derelict Logs Recovered . | . . . . . Drone Launches . | . . . . . Drone Recoveries . | . . . . . Exploration | -11 -10 -10 -10 -9 ------------- Run | Yrd Mat Min Exi Min Turns Passed 488 | 111 88 104 168 17 Spaces Moved 499 | 108 96 88 185 22 Core 12 | 4 . . . 8 Treads . | . . . . . Legs . | . . . . . Wheels 487 | 104 96 88 185 14 Hover . | . . . . . Flight . | . . . . . Fastest Speed 50 | 50 90 90 90 50 Average Speed 89 | 89 90 90 90 77 Slowest Speed 100 | 100 90 90 90 100 Overloaded Moves . | . . . . . Propulsion Burnouts . | . . . . . Robots Hopped . | . . . . . Cave-ins Triggered . | . . . . . Exploration Rate (%) 20 | 4 13 18 55 11 Regions Visited 4 Branch Regions 3 Pre-discovered Areas 1 | . . . 1 . Known Exits Taken . | . . . . . Unknown Exits Taken 4 | 1 1 1 1 . Scrap Searched . | . . . . . Spaces Dug . | . . . . . Terrain Destroyed 3 | 3 . . . . Melee . | . . . . . Projectile . | . . . . . AOE 3 | 3 . . . . Terrain Rammed . | . . . . . Walls Destroyed . | . . . . . Machines Disabled . | . . . . . Actions | -11 -10 -10 -10 -9 --------- Run | Yrd Mat Min Exi Min Total 520 | 117 96 99 186 22 Wait 5 | 3 . . 2 . Move 495 | 107 95 87 184 22 Hop . | . . . . . Pick Up 4 | . . 4 . . Fast Attach 7 | 6 1 . . . Attach . | . . . . . Detach . | . . . . . Swap 2 | . . 2 . . Drop . | . . . . . Fire 7 | 1 . 6 . . Melee . | . . . . . Ram . | . . . . . Kick . | . . . . . Crush . | . . . . . Escape Stasis . | . . . . . Rewire . | . . . . . Trap . | . . . . . Miscellaneous . | . . . . . Route ------- -11/Scrapyard -10/Materials (discovered 2 exits: [Mat] / [*Min]) -10/Mines -10/Exiles (discovered 2 exits: [*Min x2]) -9/Mines (discovered 1 exit: [*Mat]) History --------- Turn | Location | Event 18 | -11/Scrapyard | Discovered new exit (range 15) 112 | -11/Scrapyard | Entered Materials 141 | -10/Materials | Discovered new exit (range 18) 141 | -10/Materials | Discovered new exit (range 17) 200 | -10/Materials | Entered Mines 235 | -10/Mines | Excavation squad dispatched 235 | -10/Mines | A large section of the Mines collapsed 255 | -10/Mines | Found a damaged Exp. Sensor Array with a note attached 257 | -10/Mines | Found Prototype Device 300 | -10/Mines | Deemed a non-threat by the Exiles lab entrance 300 | -10/Mines | Discovered new exit (range 5) 301 | -10/Mines | Build established: Mutant 304 | -10/Mines | Entered Exiles 320 | -10/Exiles | Discovered new exit (range 15) 330 | -10/Exiles | Met 8R-AWN 349 | -10/Exiles | Met EX-HEX 393 | -10/Exiles | Met EX-DEC 417 | -10/Exiles | Learned location of Zion (-7) 463 | -10/Exiles | Discovered new exit (range 12) 472 | -10/Exiles | Entered Mines 473 | -9/Mines | Assembled infested the area 479 | -9/Mines | Discovered new exit (range 11) 482 | -9/Mines | Core integrity fell below 50% 487 | -9/Mines | Core integrity fell below 20% 489 | -9/Mines | Destroyed by G-34 Mercenary with Small Laser Last Messages --------------- 00481_ R-06 Scavenger collects Carbon-fiber Leg. 00481_ Wheel destroyed. 00481_ Laser Drill disabled. 00483_ Particle Gun destroyed. 00483_ Laser Drill disabled. 00483_ K-01 Serf collects debris. 00483_ R-06 Scavenger destroyed. 00483_ R-06 Scavenger collects Com. Wheel. 00485_ Lgt. Nuclear Core destroyed. 00485_ Assault Rifle destroyed. 00485_ Com. Wheel destroyed. 00485_ D-53 Grenadier destroyed. 00486_ The unstable cave ceiling collapses. 00486_ Acquired 20 matter. 00486_ K-01 Serf collects debris. 00486_ R-06 Scavenger collects Lgt. Ion Engine. 00487_ The unstable cave ceiling collapses. 00488_ T-07 Excavator is excavating. 00488_ K-01 Serf destroyed. 00489_ The unstable cave ceiling collapses. Map ----- +----------------------------------------------------+ | ???????????????????????????????????????? | | ???????????????????????????????????????? | | ???????????????????????????????????????? | | ?????###???????????????????????????????? | | ????## #??????????????????????????????? | | ????? ###???????????????????????????? | | ????? ???????????????????????????? | | ?????? ???????????????????????????? | | ?????? ????????????????????????????? | | ??????# ????????????????????????????? | | ??????# #????????????????????????????? | | ??????# ##???????????????????????????? | | ??????# #???????????????????????????? | | ??????# #???????????????????????????? | | ??????# ####????????????????????????? | | ??????# ## #######?????????????????? | | ??????## ## ##????????????????? | | #??????## ## # #????????????????? | | ????????# # # ##???????????????? | | ????????# ###?????????????? | | ????????#### ##????????????? | | ???????????## #????????????? | | ????????????# g <%#????????????? | | ????????????# " #dr=%*#????????????? | | ????????????# "" g ! ##???????????? | | ??????#?????# "" g @ #### #??????? | | ????????????# t#???????? | | ????????????###T#### #???????? | | ??????????????##???# ####???????? | | ???????????????????## #####??????????? | | ????????????????????####???????????????? | | ???????????????????????????????????????? | | ???????????????????????????????????????? | | ???????????????????????????????????????? | | | | | | | | | | | | | | | | | | | | | | | | | | | | | | | | | +----------------------------------------------------+ Best States ------------- Heat Dissipation 25 Energy Generation 14 Energy Capacity 250 Matter Stores 273 Matter Capacity 400 Sight Range 16 Terrain Scan Range 16 Terrain Scan Density 10 Evasion (%) 42 Item Schematics ----------------- None Robot Schematics ------------------ None Fabricated ------------ Nothing Alien Tech Used ----------------- None Achievements -------------- None Challenges ------------ None Game ------ Seed GunBottomlessAccelerator Manual? 0 Play Time 00:09:31 Cumulative 5.0 hours Start 2024.09.20 @ 01:59:28 End 2024.09.20 @ 02:08:45 Sessions 1 Manual Loads 0 Difficulty Rogue Special Mode None Game No. 8 Rogue 1 Adventurer 0 Explorer 7 Win Type - Total 0 Types 0/0/0/0/0/0/0/0/0 Lore% 6 Gallery% 9 Achievement% 13 Wizard Run 0 Options --------- Layout 1 ASCII 0 Keyboard 0 Movement Numpad Keybinds 0 Fullscreen 2 Font 24/Crisp Map View 50x35 Zoom Use 0% Tactical HUD 1 Map Filters NONE Filters NONE Steam 0 RUN: 9ed8b4e1-259a-4fd4-bb57-4b2f24ad6381